lending/lending_fUSD_20240731
["ID","MTS","AMOUNT","RATE_DAILY","PERIOD"]
[333739587,1722433530461,-156.8909,0.00043888,30]
[333739588,1722433530499,-193.87407888,0.0004389,120]
[333739589,1722433530536,-447.13,0.000439,120]
[333739590,1722433530573,-248.6152418,0.000439,30]
[333739591,1722433530609,-2014.6058335,0.000439,120]
[333739592,1722433530651,-155.5,0.000439,36]
[333739593,1722433530694,-155.5,0.000439,36]
[333739594,1722433530737,-155.5,0.000439,36]
[333739595,1722433530779,-155.5,0.000439,36]
[333739596,1722433530823,-155.5,0.000439,36]
[333739597,1722433530865,-155.5,0.000439,36]
[333739598,1722433530906,-5250.48256547,0.00043901,30]
[333739599,1722433530947,-1100.0,0.00043904,30]
[333739600,1722433530991,-800.0,0.00043904,30]
[333739601,1722433531030,-2600.0,0.00043904,30]
[333739602,1722433531069,-3100.0,0.00043904,30]
[333739603,1722433531107,-1900.0,0.00043904,30]
[333739604,1722433531146,-307.58637173,0.00043909,30]
[333739605,1722433531186,-727.42339405,0.0004392,30]
[333739606,1722433531226,-307.58637173,0.00043955,30]
[333739607,1722433531268,-3836.78,0.00043962,30]
[333739608,1722433531308,-3836.78,0.00043962,30]
[333739609,1722433531346,-750.87345481,0.00043998,30]
[333739610,1722433531390,-50000.0,0.00044,34]
[333739611,1722433531432,-50000.0,0.00044,44]
[333739612,1722433531471,-10000.0,0.00044,120]
[333739613,1722433531511,-6100.0,0.00044,30]
[333739614,1722433531550,-2000.0,0.00044,90]
[333739615,1722433531590,-10105.93055868,0.00044,120]
[333739616,1722433531629,-5000.0,0.00044,120]
[333739617,1722433531670,-1810.00165105,0.00044,120]
[333739618,1722433531710,-1000.0,0.00044,120]
[333739619,1722433531749,-1100.0,0.00044,120]
[333739620,1722433531789,-228.61826929,0.00044,30]
[333739621,1722433532053,-236.95541061,0.00044,30]
[333739622,1722433532102,-380.7553286,0.00044,120]
[333739623,1722433532141,-2000.0,0.00044,120]
[333739624,1722433532180,-772.50941038,0.00044,40]
[333739625,1722433532221,-307.58637173,0.00044,30]
[333739626,1722433532262,-400.0,0.00044,30]
[333739627,1722433532303,-628.310868,0.00044,57]
[333739628,1722433532343,-150.0,0.00044008,120]
[333739629,1722433532381,-976.42509554,0.00044042,30]
[333739630,1722433532419,-307.58637173,0.00044045,30]
[333739631,1722433532462,-645.54038,0.00044088,30]
[333739632,1722433532502,-307.58637173,0.00044091,30]
[333739633,1722433532543,-1850526.3869695,0.000441,120]
[333739634,1722433532583,-935.33864391,0.000441,30]
[333739635,1722433532622,-500.0,0.000441,120]
[333739636,1722433532661,-500.0,0.000441,120]
[333739637,1722433532699,-500.0,0.000441,120]
[333739638,1722433532739,-500.0,0.000441,120]
[333739639,1722433532779,-500.0,0.000441,120]
[333739640,1722433532818,-500.0,0.000441,120]
[333739641,1722433532856,-500.0,0.000441,120]
[333739642,1722433532894,-500.0,0.000441,120]
[333739643,1722433532936,-500.0,0.000441,120]
[333739644,1722433532976,-500.0,0.000441,120]
[333739645,1722433533021,-500.0,0.000441,120]
[333739646,1722433533065,-500.0,0.000441,120]
[333739647,1722433533104,-500.0,0.000441,120]
[333739648,1722433533144,-500.0,0.000441,120]
[333739649,1722433533186,-500.0,0.000441,120]
[333739650,1722433533229,-500.0,0.000441,120]
[333739651,1722433533271,-500.0,0.000441,120]
[333739652,1722433533312,-500.0,0.000441,120]
[333739653,1722433533351,-500.0,0.000441,120]
[333739654,1722433533390,-500.0,0.000441,120]
[333739655,1722433533429,-500.0,0.000441,120]
[333739656,1722433533472,-500.0,0.000441,120]
[333739657,1722433533516,-500.0,0.000441,120]
[333739658,1722433533557,-500.0,0.000441,120]
[333739659,1722433533597,-500.0,0.000441,120]
[333739660,1722433533637,-500.0,0.000441,120]
[333739661,1722433533678,-500.0,0.000441,120]
[333739662,1722433533718,-500.0,0.000441,120]
[333739663,1722433533758,-642.44977414,0.000441,120]
[333739664,1722433533800,-500.0,0.000441,120]
[333739665,1722433533843,-500.0,0.000441,120]
[333739666,1722433533885,-500.0,0.000441,120]
[333739667,1722433533926,-500.0,0.000441,120]
[333739668,1722433533968,-500.0,0.000441,120]
[333739669,1722433534012,-500.0,0.000441,120]
[333739670,1722433534053,-500.0,0.000441,120]
[333739671,1722433534095,-500.0,0.000441,120]
[333739672,1722433534136,-500.0,0.000441,120]
[333739673,1722433534185,-500.0,0.000441,120]
[333739674,1722433534231,-500.0,0.000441,120]
[333739675,1722433534276,-500.0,0.000441,120]
[333739676,1722433534319,-500.0,0.000441,120]
[333739677,1722433534361,-500.0,0.000441,120]
[333739678,1722433534402,-500.0,0.000441,120]
[333739679,1722433534442,-500.0,0.000441,120]
[333739680,1722433534483,-500.0,0.000441,120]
[333739681,1722433534526,-500.0,0.000441,120]
[333739682,1722433534566,-500.0,0.000441,120]
[333739683,1722433534607,-500.0,0.000441,120]
[333739684,1722433534646,-500.0,0.000441,120]
[333739685,1722433534687,-500.0,0.000441,120]
[333739686,1722433534728,-500.0,0.000441,120]
[333739687,1722433534771,-500.0,0.000441,120]
[333739688,1722433534813,-500.0,0.000441,120]
[333739689,1722433534853,-500.0,0.000441,120]
[333739690,1722433534896,-500.0,0.000441,120]
[333739691,1722433534941,-500.0,0.000441,120]
[333739692,1722433534984,-500.0,0.000441,120]
[333739693,1722433535026,-500.0,0.000441,120]
[333739694,1722433535068,-500.0,0.000441,120]
[333739695,1722433535110,-578.43896795,0.000441,120]
[333739696,1722433535151,-221.58008997,0.00044109,120]
[333739697,1722433535191,-307.58637173,0.00044136,30]
[333739698,1722433535231,-307.58637173,0.00044182,30]
[333739699,1722433535274,-2396.50312297,0.000442,120]
[333739700,1722433535314,-2396.50312293,0.000442,120]
[333739701,1722433535353,-2396.50312293,0.000442,120]
[333739702,1722433535394,-2396.50312293,0.000442,120]
[333739703,1722433535432,-2396.50312293,0.000442,120]
[333739704,1722433535471,-307.58637173,0.00044227,30]
[333739705,1722433535510,-3836.78,0.00044235,30]
[333739706,1722433535552,-3836.78,0.00044235,30]
[333739707,1722433535592,-2000000.0,0.0004425,120]
[333739708,1722433535634,-28885.39092337,0.0004425,120]
[333739709,1722433560245,-217.56,0.0001789,30]
[333739710,1722433561629,-742.05394977,0.00032727,50]
[333739711,1722433561669,-893.24149272,0.00032727,30]
[333739712,1722433561735,-2500.0,0.0004,120]
[333739713,1722433561784,-865.4228852,0.00041182,30]
[333739714,1722433561826,-865.4228852,0.00041227,30]
[333739715,1722433561869,-865.4228852,0.00041273,30]
[333739716,1722433561912,-865.4228852,0.00041318,30]
[333739717,1722433561959,-865.4228852,0.00041364,30]
[333739718,1722433562002,-865.4228852,0.00041409,30]
[333739719,1722433562049,-865.4228852,0.00041455,30]
[333739720,1722433562091,-865.4228852,0.000415,30]
[333739721,1722433562131,-865.4228852,0.00041545,30]
[333739722,1722433562173,-865.4228852,0.00041591,30]
[333739723,1722433562213,-150.0,0.00041625,30]
[333739724,1722433562258,-865.4228852,0.00041636,30]
[333739725,1722433562300,-865.4228852,0.00041682,30]
[333739726,1722433562341,-865.4228852,0.00041727,30]
[333739727,1722433562382,-865.4228852,0.00041773,30]
[333739728,1722433562423,-865.4228852,0.00041818,30]
[333739729,1722433562464,-865.4228852,0.00041864,30]
[333739730,1722433562507,-865.4228852,0.00041909,30]
[333739731,1722433562547,-865.4228852,0.00041955,30]
[333739732,1722433562587,-865.4228852,0.00042,30]
[333739733,1722433562626,-865.4228852,0.00042045,30]
[333739734,1722433562666,-865.4228852,0.00042091,30]
[333739735,1722433562705,-865.4228852,0.00042136,30]
[333739736,1722433562742,-865.4228852,0.00042182,30]
[333739737,1722433562781,-865.4228852,0.00042227,30]
[333739738,1722433563064,-865.4228852,0.00042273,30]
[333739739,1722433563110,-865.4228852,0.00042318,30]
[333739740,1722433563152,-865.4228852,0.00042364,30]
[333739741,1722433563195,-865.4228852,0.00042409,30]
[333739742,1722433563237,-865.4228852,0.00042455,30]
[333739743,1722433563285,-865.4228852,0.000425,30]
[333739744,1722433563328,-865.4228852,0.00042545,30]
[333739745,1722433563368,-865.4228852,0.00042591,30]
[333739746,1722433563411,-865.4228852,0.00042636,30]
[333739747,1722433563457,-865.4228852,0.00042682,30]
[333739748,1722433563501,-865.4228852,0.00042727,30]
[333739749,1722433563551,-150.0,0.0004275,30]
[333739750,1722433563598,-865.4228852,0.00042773,30]
[333739751,1722433563644,-865.4228852,0.00042818,30]
[333739752,1722433563690,-865.4228852,0.00042864,30]
[333739753,1722433563732,-865.4228852,0.00042909,30]
[333739754,1722433563775,-865.4228852,0.00042955,30]
[333739755,1722433563821,-865.4228852,0.00043,30]
[333739756,1722433563867,-865.4228852,0.00043045,30]
[333739757,1722433563915,-865.4228852,0.00043091,30]
[333739758,1722433563964,-865.4228852,0.00043136,30]
[333739759,1722433564012,-865.4228852,0.00043182,30]
[333739760,1722433564059,-865.4228852,0.00043227,30]
[333739761,1722433564108,-971114.60907663,0.0004425,120]
[333739762,1722433564152,-150.0,0.0004425,30]
[333739763,1722433564195,-645.54038,0.00044288,30]
[333739764,1722433564239,-559.0,0.0004431,30]
[333739765,1722433564287,-1572.29,0.00044383,30]
[333739766,1722433564332,-2205.9,0.00044384,120]
[333739767,1722433564376,-567.28,0.00044384,120]
[333739768,1722433564419,-659.99945173,0.00044398,120]
[333739769,1722433564462,-179.57638538,0.00044398,90]
[333739770,1722433564508,-238.18307548,0.00044398,90]
[333739771,1722433564554,-265443.0,0.000444,30]
[333739772,1722433564599,-150.0,0.0004442,120]
[333739773,1722433564644,-193.66666667,0.00044438,120]
[333739774,1722433564689,-931.02651037,0.0004444,120]
[333739775,1722433564733,-3100.0,0.00044452,30]
[333739776,1722433564775,-1900.0,0.00044452,30]
[333739777,1722433564819,-645.54038,0.00044488,30]
[333739778,1722433564865,-2000000.0,0.000445,120]
[333739779,1722433564909,-2000000.0,0.000445,120]
[333739780,1722433564957,-500.0,0.000445,120]
[333739781,1722433565007,-3836.78,0.00044508,30]
[333739782,1722433565055,-3836.78,0.00044508,30]
[333739783,1722433565103,-151.0,0.00044521,120]
[333739784,1722433565151,-150.0,0.00044625,30]
[333739785,1722433565198,-3000.0,0.00044657,120]
[333739786,1722433565240,-645.54038,0.00044688,30]
[333739787,1722433565290,-693161.97953205,0.0004475,120]
[333739790,1722433585985,-500.0,0.00039,120]
[333739791,1722433586040,-384.0101415,0.00041136,30]
[333739792,1722433586082,-384.0101415,0.00041182,30]
[333739793,1722433586124,-384.0101415,0.00041227,30]
[333739794,1722433586166,-384.0101415,0.00041273,30]
[333739795,1722433586209,-384.0101415,0.00041318,30]
[333739796,1722433586250,-384.0101415,0.00041364,30]
[333739797,1722433586291,-150.0,0.000414,30]
[333739798,1722433586331,-384.0101415,0.00041409,30]
[333739799,1722433586374,-384.0101415,0.00041455,30]
[333739800,1722433586415,-384.0101415,0.000415,30]
[333739801,1722433586456,-384.0101415,0.00041545,30]
[333739802,1722433586499,-384.0101415,0.00041591,30]
[333739803,1722433586540,-384.0101415,0.00041636,30]
[333739804,1722433586581,-384.0101415,0.00041682,30]
[333739805,1722433586622,-384.0101415,0.00041727,30]
[333739806,1722433586664,-384.0101415,0.00041773,30]
[333739807,1722433586704,-384.0101415,0.00041818,30]
[333739808,1722433586746,-384.0101415,0.00041864,30]
[333739809,1722433586787,-384.0101415,0.00041909,30]
[333739810,1722433586830,-384.0101415,0.00041955,30]
[333739811,1722433586874,-384.0101415,0.00042,30]
[333739812,1722433586916,-384.0101415,0.00042045,30]
[333739813,1722433586962,-384.0101415,0.00042091,30]
[333739814,1722433587004,-384.0101415,0.00042136,30]
[333739815,1722433587046,-384.0101415,0.00042182,30]
[333739816,1722433587088,-384.0101415,0.00042227,30]
[333739817,1722433587129,-384.0101415,0.00042273,30]
[333739818,1722433587170,-150.0,0.000423,30]
[333739819,1722433587212,-384.0101415,0.00042318,30]
[333739820,1722433587252,-384.0101415,0.00042364,30]
[333739821,1722433587291,-384.0101415,0.00042409,30]
[333739822,1722433587332,-384.0101415,0.00042455,30]
[333739823,1722433587373,-384.0101415,0.000425,30]
[333739824,1722433587415,-1169.17,0.00042602,30]
[333739825,1722433587457,-1169.17,0.00042602,30]
[333739826,1722433587498,-1169.17,0.00042602,30]
[333739827,1722433587538,-1169.17,0.00042602,30]
[333739828,1722433587578,-1169.17,0.00042602,30]
[333739829,1722433587618,-1169.17,0.00042602,30]
[333739830,1722433587658,-1169.17,0.00042602,30]
[333739831,1722433587698,-1169.17,0.00042602,30]
[333739832,1722433587739,-1169.17,0.00042602,30]
[333739833,1722433587785,-1169.17,0.00042602,30]
[333739834,1722433587827,-1169.17,0.00042602,30]
[333739835,1722433587870,-1169.17,0.00042602,30]
[333739836,1722433588236,-1169.17,0.00042602,30]
[333739837,1722433588280,-1169.17,0.00042602,30]
[333739838,1722433588321,-1169.17,0.00042602,30]
[333739839,1722433588362,-1169.17,0.00042602,30]
[333739840,1722433588402,-1169.17,0.00042602,30]
[333739841,1722433588442,-1169.17,0.00042602,30]
[333739842,1722433588483,-1169.17,0.00042602,30]
[333739843,1722433588526,-1169.17,0.00042602,30]
[333739844,1722433588568,-1169.17,0.00042602,30]
[333739845,1722433588608,-1169.17,0.00042602,30]
[333739846,1722433588648,-1169.17,0.00042602,30]
[333739847,1722433588688,-1169.18160348,0.00042602,30]
[333739848,1722433588727,-150.0,0.000432,30]
[333739849,1722433588767,-1177.01863121,0.000433,30]
[333739850,1722433588817,-1022.63,0.00043835,120]
[333739851,1722433588859,-1022.63,0.00043835,120]
[333739852,1722433588898,-1022.63,0.00043835,120]
[333739853,1722433588938,-1022.63,0.00043835,120]
[333739854,1722433588978,-1022.63,0.00043835,120]
[333739855,1722433589018,-1022.63,0.00043835,120]
[333739856,1722433589066,-1022.63,0.00043835,120]
[333739857,1722433589107,-1022.63,0.00043835,120]
[333739858,1722433589148,-1022.63,0.00043835,120]
[333739859,1722433589191,-1022.63,0.00043835,120]
[333739860,1722433589232,-1022.63,0.00043835,120]
[333739861,1722433589276,-1022.63,0.00043835,120]
[333739862,1722433589319,-1022.63,0.00043835,120]
[333739863,1722433589360,-1022.63,0.00043835,120]
[333739864,1722433589402,-1022.63,0.00043835,120]
[333739865,1722433589443,-1022.63,0.00043835,120]
[333739866,1722433589483,-1022.63,0.00043835,120]
[333739867,1722433589527,-1022.63,0.00043835,120]
[333739868,1722433589569,-1022.63,0.00043835,120]
[333739869,1722433589614,-1022.63,0.00043835,120]
[333739870,1722433589656,-1022.63,0.00043835,120]
[333739871,1722433589700,-1022.63,0.00043835,120]
[333739872,1722433589740,-1022.63,0.00043835,120]
[333739873,1722433589783,-1022.82059581,0.00043835,120]
[333739874,1722433589822,-150.0,0.00043875,30]
[333739875,1722433589862,-150.0,0.000441,30]
[333739876,1722433589904,-1306838.02046795,0.0004475,120]
[333739877,1722433589946,-500.0,0.00044762,120]
[333739878,1722433589989,-150.0,0.00044777,120]
[333739879,1722433590036,-3836.78,0.00044781,30]
[333739880,1722433590080,-3836.78,0.00044781,30]
[333739881,1722433590124,-726.23325839,0.000448,120]
[333739882,1722433590165,-5587.305625,0.000448,60]
[333739883,1722433590204,-20000.0,0.0004483,30]
[333739884,1722433590243,-876.4867514,0.00044867,40]
[333739885,1722433590285,-305.19235121,0.00044867,40]
[333739886,1722433590325,-513.28687699,0.00044867,40]
[333739887,1722433590364,-4721.5217504,0.00044867,40]
[333739888,1722433590404,-14958.87472038,0.000449,60]
[333739889,1722433590444,-188.45509333,0.000449,120]
[333739890,1722433590485,-1055.90600097,0.000449,120]
[333739891,1722433590524,-2838.29414228,0.000449,60]
[333739892,1722433590565,-501.15,0.0004493,120]
[333739893,1722433590604,-1572.29,0.00044931,30]
[333739894,1722433590646,-50000.0,0.00045,35]
[333739895,1722433590689,-50000.0,0.00045,45]
[333739896,1722433590730,-2308.43007681,0.00045,30]
[333739897,1722433590771,-1000000.0,0.00045,120]
[333739898,1722433590816,-1000000.0,0.00045,120]
[333739899,1722433590859,-1000000.0,0.00045,120]
[333739900,1722433590902,-1000000.0,0.00045,120]
[333739901,1722433590944,-461750.25766789,0.00045,120]
[333739903,1722433626986,-383.28375334,0.0003,30]
[333739904,1722433627028,-383.28375334,0.0003,30]
[333739905,1722433628323,-61695.23119181,0.00034793,30]
[333739906,1722433628362,-893.24149272,0.00034793,30]
[333739907,1722433628410,-460.32610704,0.00039,120]
[333739908,1722433628453,-513.70637631,0.0004,120]
[333739909,1722433628494,-150.0,0.0004125,30]
[333739910,1722433628531,-150.0,0.00041318,30]
[333739911,1722433628572,-150.0,0.000414,30]
[333739912,1722433628614,-150.0,0.00041727,30]
[333739913,1722433628653,-150.0,0.00042,30]
[333739914,1722433628697,-150.0,0.00042136,30]
[333739915,1722433628736,-150.0,0.000423,30]
[333739916,1722433628779,-384.0101415,0.00042545,30]
[333739917,1722433628820,-150.0,0.00042545,30]
[333739918,1722433628858,-384.0101415,0.00042591,30]
[333739919,1722433628897,-384.0101415,0.00042636,30]
[333739920,1722433628937,-384.0101415,0.00042682,30]
[333739921,1722433628980,-384.0101415,0.00042727,30]
[333739922,1722433629020,-150.0,0.0004275,30]
[333739923,1722433629058,-384.0101415,0.00042773,30]
[333739924,1722433629096,-384.0101415,0.00042818,30]
[333739925,1722433629135,-384.0101415,0.00042864,30]
[333739926,1722433629175,-2496.0,0.00042881,93]
[333739927,1722433629215,-384.0101415,0.00042909,30]
[333739928,1722433629253,-384.0101415,0.00042955,30]
[333739929,1722433629291,-150.0,0.00042955,30]
[333739930,1722433629332,-384.0101415,0.00043,30]
[333739931,1722433629371,-384.0101415,0.00043045,30]
[333739932,1722433629409,-384.0101415,0.00043091,30]
[333739933,1722433629448,-384.0101415,0.00043136,30]
[333739934,1722433629486,-384.0101415,0.00043182,30]
[333739935,1722433629523,-150.0,0.000432,30]
[333739936,1722433629560,-384.0101415,0.00043227,30]
[333739937,1722433629597,-384.0101415,0.00043273,30]
[333739938,1722433629636,-1177.01863121,0.000433,30]
[333739939,1722433629674,-384.0101415,0.00043318,30]
[333739940,1722433629715,-384.0101415,0.00043364,30]
[333739941,1722433629754,-150.0,0.00043364,30]
[333739942,1722433629792,-384.0101415,0.00043409,30]
[333739943,1722433629832,-384.0101415,0.00043455,30]
[333739944,1722433629872,-384.0101415,0.000435,30]
[333739945,1722433629912,-150.0,0.000435,30]
[333739946,1722433629952,-384.0101415,0.00043545,30]
[333739947,1722433629993,-384.0101415,0.00043591,30]
[333739948,1722433630033,-384.0101415,0.00043636,30]
[333739949,1722433630073,-384.0101415,0.00043682,30]
[333739950,1722433630113,-384.0101415,0.00043727,30]
[333739951,1722433630152,-384.0101415,0.00043773,30]
[333739952,1722433630192,-150.0,0.00043773,30]
[333739953,1722433630232,-384.0101415,0.00043818,30]
[333739954,1722433630272,-384.0101415,0.00043864,30]
[333739955,1722433630312,-384.0101415,0.00043909,30]
[333739956,1722433630351,-384.0101415,0.00043955,30]
[333739957,1722433630390,-384.0101415,0.00044,30]
[333739958,1722433630430,-384.0101415,0.00044045,30]
[333739959,1722433630471,-384.0101415,0.00044091,30]
[333739960,1722433630510,-150.0,0.000441,30]
[333739961,1722433630548,-384.0101415,0.00044136,30]
[333739962,1722433630877,-384.0101415,0.00044182,30]
[333739963,1722433630918,-150.0,0.00044182,30]
[333739964,1722433630957,-384.0101415,0.00044227,30]
[333739965,1722433630996,-150.0,0.0004425,30]
[333739966,1722433631035,-384.0101415,0.00044273,30]
[333739967,1722433631076,-384.0101415,0.00044318,30]
[333739968,1722433631116,-384.0101415,0.00044364,30]
[333739969,1722433631157,-384.0101415,0.00044409,30]
[333739970,1722433631199,-384.0101415,0.00044455,30]
[333739971,1722433631240,-384.0101415,0.000445,30]
[333739972,1722433631278,-384.0101415,0.00044545,30]
[333739973,1722433631316,-384.0101415,0.00044591,30]
[333739974,1722433631353,-150.0,0.00044591,30]
[333739975,1722433631392,-384.0101415,0.00044636,30]
[333739976,1722433631432,-384.0101415,0.00044682,30]
[333739977,1722433631474,-384.0101415,0.00044727,30]
[333739978,1722433631516,-384.0101415,0.00044773,30]
[333739979,1722433631559,-384.0101415,0.00044818,30]
[333739980,1722433631598,-384.0101415,0.00044864,30]
[333739981,1722433631640,-513.28687699,0.00044867,40]
[333739982,1722433631681,-384.0101415,0.00044909,30]
[333739983,1722433631724,-384.0101415,0.00044955,30]
[333739984,1722433631766,-538249.74233211,0.00045,120]
[333739985,1722433631808,-1000000.0,0.00045,120]
[333739986,1722433631848,-1000000.0,0.00045,120]
[333739987,1722433631888,-10000.0,0.00045,60]
[333739988,1722433631927,-203.16645119,0.00045,120]
[333739989,1722433631970,-1000000.0,0.00045,120]
[333739990,1722433632009,-707.1012783,0.00045,120]
[333739991,1722433632050,-1388.0,0.00045,90]
[333739992,1722433632089,-500.0,0.00045,120]
[333739993,1722433632128,-1000.0,0.00045,120]
[333739994,1722433632168,-1000.0,0.00045,120]
[333739995,1722433632208,-2476.56077935,0.00045,30]
[333739996,1722433632249,-1000.0,0.00045,120]
[333739997,1722433632288,-1000.0,0.00045,120]
[333739998,1722433632328,-2115.35441461,0.00045,120]
[333739999,1722433632367,-1000.0,0.00045,120]
[333740000,1722433632408,-1000.0,0.00045,120]
[333740001,1722433632448,-1690.73216257,0.00045,120]
[333740002,1722433632487,-476.1827918,0.00045,120]
[333740003,1722433632525,-719.22937995,0.00045,120]
[333740004,1722433632564,-150.0,0.00045,85]
[333740005,1722433632603,-14044.16007419,0.00045,120]
[333740006,1722433632643,-229.85307473,0.00045,120]
[333740007,1722433632683,-15490.47188044,0.00045,120]
[333740008,1722433632721,-1009.6,0.00045,120]
[333740009,1722433632760,-2000000.0,0.00045,120]
[333740010,1722433632799,-1527.60869043,0.00045,90]
[333740011,1722433632843,-1723.21028326,0.00045,45]
[333740012,1722433632884,-334.84637978,0.00045,30]
[333740013,1722433632924,-880.43949403,0.00045,120]
[333740014,1722433632964,-495.82802471,0.00045,120]
[333740015,1722433633005,-2043.24163275,0.00045,30]
[333740016,1722433633047,-2267.69116312,0.00045,60]
[333740017,1722433633091,-10000.0,0.00045,60]
[333740018,1722433633134,-1000.0,0.00045,120]
[333740019,1722433633176,-413.50327918,0.00045,120]
[333740020,1722433633215,-3219.47822144,0.00045,120]
[333740021,1722433633255,-548.56201677,0.00045,120]
[333740022,1722433633296,-1994.46,0.00045,120]
[333740023,1722433633340,-489.33521965,0.00045,90]
[333740024,1722433633385,-3200.0,0.00045,120]
[333740025,1722433633428,-232.0,0.00045,30]
[333740026,1722433633469,-214.0,0.00045,30]
[333740027,1722433633509,-3500.0,0.00045,60]
[333740028,1722433633549,-559.0,0.00045,30]
[333740029,1722433633590,-1728.0032715,0.00045,120]
[333740030,1722433633630,-200.0,0.00045,30]
[333740031,1722433633669,-2940.65558637,0.00045,120]
[333740032,1722433633708,-300.0,0.00045,30]
[333740033,1722433633748,-150.0,0.00045,30]
[333740034,1722433633787,-793.0,0.00045,30]
[333740035,1722433633828,-793.0,0.00045,30]
[333740036,1722433633867,-296.78128731,0.00045,30]
[333740037,1722433633907,-242.42948031,0.00045,30]
[333740038,1722433633949,-167.20157368,0.00045,30]
[333740039,1722433633990,-384.0101415,0.00045,30]
[333740040,1722433634029,-271.91658534,0.00045,30]
[333740041,1722433634071,-189.36837994,0.00045,30]
[333740042,1722433634111,-186.48280904,0.00045,30]
[333740043,1722433634153,-251.49108059,0.00045,30]
[333740044,1722433634193,-1000.0,0.00045012,120]
[333740045,1722433634233,-1000.0,0.00045028,120]
[333740046,1722433634273,-1000.0,0.00045044,120]
[333740048,1722433634313,-3836.78,0.00045055,30]
[333740049,1722433634352,-3836.78,0.00045055,30]
[333740050,1722433634394,-1000.0,0.0004506,120]
[333740051,1722433634434,-1000.0,0.00045077,120]
[333740052,1722433634475,-1000.0,0.00045093,120]
[333740053,1722433634513,-1000.0,0.00045109,120]
[333740054,1722433634553,-1000.0,0.00045125,120]
[333740055,1722433634593,-141770.6177,0.0004514,30]
[333740056,1722433634632,-1000.0,0.00045141,120]
[333740057,1722433634672,-1000.0,0.00045157,120]
[333740058,1722433634711,-1000.0,0.00045173,120]
[333740059,1722433634751,-1000.0,0.00045189,120]
[333740060,1722433634791,-1702.12825151,0.00045205,120]
[333740061,1722433634833,-105914.06900479,0.00045222,30]
[333740063,1722433644304,-394.15119324,0.00033289,30]
[333740064,1722433644345,-394.15119324,0.00033694,30]
[333740065,1722433644385,-394.15119324,0.00033957,30]
[333740066,1722433644425,-394.15119324,0.00034094,30]
[333740067,1722433644465,-394.15119324,0.00034249,30]
[333740068,1722433644505,-394.15119324,0.00034551,30]
[333740069,1722433644544,-394.15119324,0.0003483,30]
[333740070,1722433644589,-394.15119324,0.00035216,30]
[333740071,1722433644628,-394.15119324,0.00035532,30]
[333740072,1722433644669,-394.15119324,0.00035634,30]
[333740073,1722433644719,-150.0,0.00041143,30]
[333740074,1722433644757,-150.0,0.00041207,30]
[333740075,1722433644798,-150.0,0.00041271,30]
[333740076,1722433644842,-150.0,0.00041336,30]
[333740077,1722433644888,-150.0,0.000414,30]
[333740078,1722433644933,-150.0,0.00041464,30]
[333740079,1722433644978,-150.0,0.00041529,30]
[333740080,1722433645024,-150.0,0.00041593,30]
[333740081,1722433645071,-150.0,0.00041657,30]
[333740082,1722433645114,-150.0,0.00041721,30]
[333740083,1722433645156,-150.0,0.00041786,30]
[333740084,1722433645198,-150.0,0.0004185,30]
[333740085,1722433645238,-150.0,0.00041914,30]
[333740086,1722433645279,-150.0,0.00041979,30]
[333740087,1722433645321,-150.0,0.00042043,30]
[333740088,1722433645362,-150.0,0.00042107,30]
[333740089,1722433645403,-150.0,0.00042171,30]
[333740090,1722433645443,-150.0,0.00042236,30]
[333740091,1722433645483,-150.0,0.000423,30]